Cogmind - Beta 14 X2 @@@ ROGUE MODE // 2024.07.30 @ 11:36:25 Player: Magi163 Result: Destroyed by UJ-LAJ(R) with Subdweller Machine Gun Performance ------------- Evolutions (0) 0 Regions Visited (2) 400 Robots Destroyed (14) 70 Value Destroyed (407) 407 Prototype IDs (0) 0 Alien Tech Used (0) 0 Bonus (0) 0 TOTAL SCORE: 877 Bonus ------- None Cogmind --------- Core Integrity 0/250 Matter 300/300 Energy 98/100 System Corruption 0% Temperature Cool (1) Movement Walking (120) Location -10/Subcaves Parts ------- > --- POWER (1) -------- (None) > --- PROPULSION (2) --- Aluminum Leg > --- UTILITY (2) ------ Subdweller Optics > --- WEAPON (2) ------- Assault Rifle Light Assault Rifle > --- INVENTORY (5) ---- Mining Laser Peak State ------------ > --- POWER ------------ Light Ion Engine > --- PROPULSION ------- Light Treads Light Treads > --- UTILITY ---------- Scrap Shield > --- WEAPON ----------- Light Assault Rifle Light Assault Rifle > --- INVENTORY -------- Ion Engine Aluminum Leg Aluminum Leg Assault Rifle Mining Laser [Rating: 9] Favorites ----------- Power Ion Engine Engine Ion Engine Propulsion Light Treads Treads Light Treads Leg Aluminum Leg Utility Small Storage Unit Device Structural Scanner Storage Small Storage Unit Protection Scrap Shield Weapon Light Assault Rifle Ballistic Gun Light Assault Rifle Special Weapon Mining Laser Build | -11 -10 -10 ------- Run | Yrd Mat Sub Slots Evolved . | . . . Power . | . . . Propulsion . | . . . Utility . | . . . Weapon . | . . . Parts Attached 15 | . 7 8 Power 2 | . 1 1 Engine 2 | . 1 1 Core . | . . . Reactor . | . . . Propulsion 3 | . 2 1 Treads 2 | . 2 . Leg 1 | . . 1 Wheel . | . . . Hover . | . . . Flight . | . . . Utility 3 | . 1 2 Device 2 | . 1 1 Storage . | . . . Processor . | . . . Hackware . | . . . Protection 1 | . . 1 Artifact . | . . . Weapon 7 | . 3 4 Energy Gun . | . . . Energy Cannon . | . . . Ballistic Gun 4 | . 1 3 Ballistic Cannon . | . . . Launcher . | . . . Special Weapon 3 | . 2 1 Impact Weapon . | . . . Slashing Weapon . | . . . Piercing Weapon . | . . . Special Melee Weapon . | . . . Unidentified Prototypes . | . . . Parts Lost 6 | . . 6 Power 2 | . . 2 Propulsion 2 | . . 2 Utility 1 | . . 1 Weapon 1 | . . 1 Highest Loss Streak 6 | . . 6 To Critical Strikes . | . . . Average Slot Usage (%) 94 | . 96 84 Engine 13 | . 14 13 Treads 26 | . 26 26 Leg 1 | . 1 . Device 9 | . 11 2 Storage 11 | . 14 . Protection 2 | . . 11 Ballistic Gun 23 | . 23 23 Special Weapon 4 | . 4 4 Naked Turns . | . . . Heaviest Build 23 | 13 14 23 Greatest Support 40 | 20 40 40 Greatest Overweight (x) . | . . . Average Overweight (x) . | . . . Largest Inventory Capacity 8 | . 8 8 Average Capacity 7 | . 8 5 Most Carried 8 | . 8 8 Average Carried 7 | . 7 4 Final Capacity 8 | 8 8 5 Final Carried 8 | 6 8 1 Class Distribution -------------------- 100% | Mutant Dominant Class ---------------- Mutant | -10/Materials Mutant | -10/Subcaves Resources | -11 -10 -10 ----------- Run | Yrd Mat Sub Matter Collected 478 | 187 225 66 Remotely . | . . . Salvage Created 485 | . 389 96 Parts 31 | . 25 6 Haulers Intercepted . | . . . Recyclers Shooed 5 | . 5 . Parts Field Recycled . | . . . Retrieved Matter . | . . . Parts Self-Destructed . | . . . Prevented . | . . . Kills | -11 -10 -10 ------- Run | Yrd Mat Sub Combat Hostiles Destroyed 13 | . 10 3 Guns 13 | . 10 3 Classes Destroyed 4 | . 3 1 Recycler 1 | . 1 . Swarmer 3 | . 3 . Grunt 7 | . 7 . Subdweller 3 | . . 3 Best Kill Streak 3 | . 3 2 Combat Bots Only 2 | . 2 2 Max Kills in Single Turn 1 | . 1 1 Gunslinging . | . . . Exploded . | . . . Melee . | . . . Uniques/NPCs Destroyed . | . . . Combat | -11 -10 -10 -------- Run | Yrd Mat Sub Hostile Shots Fired 90 | . 42 48 Missed 18 | . 8 10 Damage Taken 1184 | . 366 818 Core 261 | . 59 202 Absorbed by Shields . | . . . Core Remaining (%) 100 | 100 . . Volleys Fired 58 | . 43 15 Largest 2 | . 2 2 Hottest 100 | . 100 100 Shots Fired 106 | . 82 24 Gun 96 | . 78 18 Cannon . | . . . Launcher . | . . . Special 10 | . 4 6 Kinetic 96 | . 78 18 Thermal 10 | . 4 6 Explosive . | . . . Electromagnetic . | . . . Robot Hit Streak 30 | . 13 30 Robot Miss Streak 4 | . 4 . Penetration Max . | . . . Secondary Targets 5 | . 2 3 Max Gunslinging Chain 1 | . 1 1 Shots Hit Robots 70 | . 52 18 Core Hits 31 | . 24 7 Critical Kills . | . . . Critical Parts Destroyed 1 | . 1 . Critical Strikes 1 | . 1 . Destroy 1 | . 1 . Melee Attacks . | . . . Impact . | . . . Slashing . | . . . Piercing . | . . . Sneak Attacks . | . . . Combat Hostiles . | . . . Follow-up Attacks . | . . . Damage Inflicted 685 | . 536 149 Guns 682 | . 536 146 Cannons . | . . . Explosions . | . . . Melee . | . . . Ramming 3 | . . 3 Kinetic 682 | . 536 146 Thermal . | . . . Explosive . | . . . Electromagnetic . | . . . Impact . | . . . Slashing . | . . . Piercing . | . . . Highest Corruption . | . . . Average Corruption . | . . . Corruption Purged . | . . . Corruption Blocked . | . . . Overload Shots . | . . . Overflow Damage . | . . . Projectiles . | . . . Explosions . | . . . Melee . | . . . Knockbacks . | . . . Impact . | . . . Kinetic . | . . . Secondary . | . . . Self-Inflicted Damage . | . . . Shots . | . . . Rammed . | . . . Targets Rammed 1 | . . 1 Kicked 1 | . . 1 Crushed . | . . . Highest Temperature 40 | . 40 . Average Temperature 10 | . 10 . Received Heat Transfer 231 | . 165 66 Siege Activations . | . . . Robots Corrupted . | . . . Combat Hostiles . | . . . Parts Fried . | . . . Impact Corruptions . | . . . Robots Melted . | . . . Combat Hostiles . | . . . Parts Melted . | . . . Heat Transferred . | . . . Parts Sabotaged . | . . . Parts Stolen . | . . . Parts Stripped . | . . . Power Chain Reactions . | . . . Alert | -11 -10 -10 ------- Run | Yrd Mat Sub Peak Influence 291 | . 291 . Initial . | . . . Average 166 | . 166 . Maximum Alert Level 1 | . 1 . Low Security (%) 73 | . 73 . Level 1 26 | . 26 . Level 2 . | . . . Level 3 . | . . . Level 4 . | . . . Level 5 . | . . . High Security . | . . . Max Security . | . . . Squads Dispatched 2 | . 2 . Investigation . | . . . Extermination . | . . . Reinforcement 2 | . 2 . Assault . | . . . Garrison . | . . . Intercept . | . . . Searches Triggered . | . . . Construction Impeded . | . . . Haulers Reinforced . | . . . Active Scanning Responses . | . . . Cargo Convoy Interrupts . | . . . Stealth | -11 -10 -10 --------- Run | Yrd Mat Sub Distress Signals 3 | . 3 . Communications Jammed . | . . . Distress Signals . | . . . Times Spotted 29 | . 21 8 Peak Tracking Total 8 | . 4 8 Tactical Retreats 3 | . 3 . Traps | -11 -10 -10 ------- Run | Yrd Mat Sub Traps Triggered . | . . . Indirectly . | . . . Trap Hack Attempts . | . . . Triggered . | . . . Disarmed . | . . . Reprogrammed . | . . . Reused . | . . . Traps Extracted . | . . . Installed . | . . . Triggered . | . . . Machines | -11 -10 -10 ---------- Run | Yrd Mat Sub Machines Disabled . | . . . Max in Single Turn . | . . . Machines Repaired . | . . . Machines Dismantled . | . . . Machines Sabotaged . | . . . Overloaded Fab Kills . | . . . Hacking | -11 -10 -10 --------- Run | Yrd Mat Sub Machines Accessed 4 | . 4 . Terminals 4 | . 4 . Fabricators . | . . . Repair Stations . | . . . Recycling Units . | . . . Scanalyzers . | . . . Garrison Access . | . . . Total Hacks 13 | . 13 . Successful 4 | . 4 . Failed 9 | . 9 . Catastrophic 1 | . 1 . Database Lockouts . | . . . Manual 10 | . 10 . Terminals 13 | . 13 . Fabricators . | . . . Repair Stations . | . . . Recycling Units . | . . . Scanalyzers . | . . . Garrison Access . | . . . Terminal Hacks 1 | . 1 . Alert Level 1 | . 1 . Fabricator Hacks . | . . . Repair Station Hacks . | . . . Recycling Unit Hacks . | . . . Scanalyzer . | . . . Garrison Access Hacks . | . . . Unauthorized Hacks 3 | . 3 . Terminals 3 | . 3 . Skim 3 | . 3 . Fabricators . | . . . Repair Stations . | . . . Recycling Units . | . . . Scanalyzers . | . . . Garrison Access . | . . . Data Cores Recovered . | . . . Used . | . . . Hacking Detections 3 | . 3 . Full Trace Events . | . . . Feedback Events . | . . . Feedback Blocked . | . . . Robot Schematics Acquired . | . . . Robots Built . | . . . Authchips . | . . . Time . | . . . Total Robot Build Rating . | . . . Part Schematics Acquired . | . . . Parts Built . | . . . Authchips . | . . . Time . | . . . Total Part Build Rating . | . . . Parts Repaired . | . . . Time . | . . . Parts Recycled . | . . . Recycled Matter . | . . . Retrieved Matter . | . . . Retrieved Components . | . . . Parts Scanalyzed . | . . . Part Schematics Acquired . | . . . Parts Damaged . | . . . Bothacking | -11 -10 -10 ------------ Run | Yrd Mat Sub Used RIF Installer . | . . . Robots Hacked . | . . . Non-combat . | . . . Combat . | . . . Robot Hacks Applied . | . . . Relay Couplers Released . | . . . Fabnet Peak Effective % . | . . . Robots Rewired . | . . . Allies Hacked . | . . . Hacks Repelled . | . . . Allies | -11 -10 -10 -------- Run | Yrd Mat Sub Total Allies . | . . . Largest Group . | . . . Highest-Rated Group . | . . . Highest-Rated Ally . | . . . Total Orders . | . . . Ally Attacks . | . . . Total Damage . | . . . Kills . | . . . Allies Corrupted . | . . . Allies Melted . | . . . Intel | -11 -10 -10 ------- Run | Yrd Mat Sub Robot Analysis Total . | . . . Derelict Logs Recovered . | . . . Drone Launches . | . . . Drone Recoveries . | . . . Exploration | -11 -10 -10 ------------- Run | Yrd Mat Sub Turns Passed 833 | . 680 153 Spaces Moved 377 | 1 318 58 Core . | . . . Treads 345 | . 289 56 Legs 32 | 1 29 2 Wheels . | . . . Hover . | . . . Flight . | . . . Fastest Speed 120 | 120 120 120 Average Speed 156 | 120 156 158 Slowest Speed 160 | 120 160 160 Overloaded Moves . | . . . Propulsion Burnouts . | . . . Robots Hopped . | . . . Cave-ins Triggered . | . . . Exploration Rate (%) 25 | 2 66 7 Regions Visited 2 Branch Regions 1 Pre-discovered Areas . | . . . Known Exits Taken . | . . . Unknown Exits Taken 2 | 1 1 . Scrap Searched . | . . . Spaces Dug 4 | . 4 . Terrain Destroyed 4 | . 4 . Melee . | . . . Projectile 4 | . 4 . AOE . | . . . Terrain Rammed . | . . . Walls Destroyed . | . . . Machines Disabled . | . . . Actions | -11 -10 -10 --------- Run | Yrd Mat Sub Total 507 | . 421 86 Wait 38 | . 38 . Move 375 | . 317 58 Hop . | . . . Pick Up 10 | . 9 1 Fast Attach 2 | . 1 1 Attach 4 | . . 4 Detach . | . . . Swap 9 | . 6 3 Drop 10 | . 7 3 Fire 58 | . 43 15 Melee . | . . . Ram . | . . . Kick 1 | . . 1 Crush . | . . . Escape Stasis . | . . . Rewire . | . . . Trap . | . . . Miscellaneous . | . . . Route ------- -11/Scrapyard -10/Materials (discovered 3 exits: [*Mat] / [*Min] / [*Sub]) -10/Subcaves History --------- Turn | Location | Event 1 | -11/Scrapyard | Discovered new exit (range 0) 1 | -11/Scrapyard | Entered Materials 289 | -10/Materials | Discovered new exit (range 7) 331 | -10/Materials | Build established: Mutant 434 | -10/Materials | Discovered new exit (range 9) 565 | -10/Materials | Discovered new exit (range 8) 681 | -10/Materials | Entered Subcaves 725 | -10/Subcaves | Shifting Twisted Machinery released Sub. Optics 728 | -10/Subcaves | Shifting Twisted Machinery released Sub. Optics 765 | -10/Subcaves | Ambushed by swarm of Subdwellers 820 | -10/Subcaves | Core integrity fell below 50% 831 | -10/Subcaves | Lost 4 allies 831 | -10/Subcaves | Core integrity fell below 20% 834 | -10/Subcaves | Destroyed by UJ-LAJ(R) with Subdweller Machine Gun Last Messages --------------- 00788_ 1G-A1H(R) suffers critical hit (Destroy). 00788_ 1G-A1H(R) destroyed. 00793_ Q2-9TW(R) affixes Scrap Shield Fragment to Scrap Shield. 00800_ 9Y-659(h) destroyed. 00804_ TV-V4G(R) destroyed. 00804_ Switching to secondary target: Q2-9TW(R). 00805_ RO-PW8(R) affixes Scrap Shield Fragment to Scrap Shield. 00806_ F4-C4E(R) destroyed. 00806_ Switching to secondary target: UJ-LAJ(R). 00814_ Scrap Shield destroyed. 00821_ Lgt. Treads destroyed. 00823_ Lgt. Ion Engine destroyed. 00825_ Lgt. Assault Rifle destroyed. 00828_ RO-PW8(R) destroyed. 00828_ Switching to secondary target: Q2-9TW(R). 00829_ Ion Engine destroyed. 00831_ Kicked 6D-VVJ(R) out of the way. 00832_ Acquired 42 matter. 00832_ Subatomizers dissect the Sub. Machine Gun. 00832_ Acquired 24 matter. Map ----- +----------------------------------------------------+ | ??????????????????### ### #??????????? | | ??????????????????###### #??????????????? | | ??????????????????????## ### ####??????????????? | | ???????????????????#### #####?#?????????????????? | | ???????????????????# ###?????????????????????? | | ???????????????????## #???????????????????????? | | ????????????????????## ##??????????????????????? | | ?????????????????????## ##?????????????????????? | | ??????????????????????# #?????????????????????? | | ??????????????????????# #?????????????????????? | | ??????????????????????# #?????????????????????? | | ?????????????????????## ##????????????????????? | | ???????????????# ### ##???????????????????? | | ????????????????# #???????????????????? | | ????????????????# #???????????????????? | | ????????????????# ## #???????????????????? | | ????????????????# ?##= #???????????????????? | | ????????????????## ??# !#???????????????????? | | ?????????????????## ??#"%#????????? ????????? | | ??????????????????# ### ?##%!#??????? ???????? | | ??????????????????##??##?#=*%###### ??????? | | ?????????????????????????#[=!* #??????????? | | ???????????????????###?###!! #??????????? | | ?????????????????###"#?#!=%"" ##?????????? | | ????????????????##" ###%="" #?????????? | | ???????????????##"" ## %@ """ ###?????????? | | ???????????????#" " ""[%### ## #???????????? | | ???????????????##"""""%[ ### ###?? ??????????? | | ????????????????#"" ""RR!!#?####????? ?????????? | | ????????????????## """ & #???????????? ?????????? | | ?????????????????## ## #??????????????????????? | | ??????????????????#""" ####??????????????????????? | | ?????????????????# " #?????????????????????????? | | ?????????????????#######?????????????????????????? | | ?????????????????????????????????????????????????? | | ?????????????????????????????????????????????????? | | ?????????????????????????????????????????????????? | | ?????????????????????????????????????????????????? | | ?????????????????????????????????????????????????? | | ?????????????????????????????????????????????????? | | ?????????????????????????????????????????????????? | | ?????????????????????????????????????????????????? | | ?????????????????????????????????????????????????? | | ?????????????????????????????????????????????????? | | ?????????????????????????????????????????????????? | | ?????????????????????????????????????????????????? | | ?????????????????????????????????????????????????? | | ?????????????????????????????????????????????????? | | ?????????????????????????????????????????????????? | | ?????????????????????????????????????????????????? | +----------------------------------------------------+ Best States ------------- Heat Dissipation 25 Energy Generation 10 Energy Capacity 250 Matter Stores 300 Matter Capacity 300 Sight Range 21 Terrain Scan Density 10 Armor Coverage 800 Evasion (%) 55 Recoil Reduction 2 Item Schematics ----------------- None Robot Schematics ------------------ None Fabricated ------------ Nothing Alien Tech Used ----------------- None Achievements -------------- None Challenges ------------ None Game ------ Seed BiomechanicalDecoderCleaver Manual? 0 Play Time 00:12:40 Cumulative 54.4 hours Start 2024.07.30 @ 11:26:57 End 2024.07.30 @ 11:36:25 Sessions 1 Manual Loads 0 Difficulty Rogue Special Mode None Game No. 202 Rogue 202 Adventurer 0 Explorer 0 Win Type - Total 0 Types 0/0/0/0/0/0/0/0/0 Lore% 28 Gallery% 58 Achievement% 44 Wizard Run 0 Options --------- Layout 0 ASCII 0 Keyboard 0 Movement Mouse Keybinds 0 Fullscreen 2 Font 18/SmallcapsGlow Map View 76x50 Zoom Use 0% Tactical HUD 1 Map Filters NONE Filters NONE Steam 1 RUN: 60af9d32-dcfd-4d52-bb90-d573e3b48d5b